bitfinex-derivatives/quotes_ETHF0:USTF0_20250103
["timestamp","ask_amount","ask_price","bid_price","bid_amount"]
[1735927689801,0.77515,3582.4,3582.1,0.27937]
[1735927689997,0.4958,3582.4,3582.0,6.55314658]
[1735927690201,0.77515,3582.4,3582.0,6.55314658]
[1735927690504,0.77515,3582.4,3582.2,0.27936]
[1735927690705,0.4958,3582.4,3582.2,0.27936]
[1735927690903,0.27935,3582.3,3582.1,0.27937]
[1735927691099,0.4958,3582.4,3582.0,0.69845]
[1735927691301,0.4958,3582.4,3582.3,0.27935]
[1735927693405,0.4958,3582.4,3582.0,1.66665]
[1735927693406,7.59497114,3582.8,3582.2,5.34188956]
[1735927693600,7.59497114,3582.8,3582.7,0.27932]
[1735927693800,4.66649114,3582.8,3582.7,0.27932]
[1735927694707,0.27932,3582.7,3582.6,0.27933]
[1735927695004,0.27934,3582.6,3582.5,0.27934]
[1735927695607,3.2078,3582.8,3582.2,3.2078]
[1735927695809,0.27935,3582.3,3582.2,3.48716]
[1735927696110,5.34188956,3582.8,3581.8,6.55314658]
[1735927696111,2.13408956,3582.5,3581.8,6.55314658]
[1735927696407,0.27939,3581.9,3581.8,6.55314658]
[1735927697808,6.32248956,3582.2,3581.6,0.2794]
[1735927697809,0.2794,3581.7,3581.6,0.2794]
[1735927698114,0.27942,3581.4,3581.3,3.48722]
[1735927698710,0.27942,3581.4,3581.3,3.2078]
[1735927698905,0.27945,3581.1,3581.0,6.55314658]
[1735927699313,0.27946,3580.9,3580.8,0.27947]
[1735927699909,0.27947,3580.8,3580.7,6.55314658]
[1735927700906,5.34188956,3581.0,3580.3,10.94563896]
[1735927701103,0.7132686,3580.4,3580.3,0.27951]
[1735927701304,0.2795,3580.4,3580.3,0.27951]
[1735927701505,0.7132686,3580.5,3580.4,0.2795]
[1735927702203,0.2795,3580.5,3580.4,0.2795]
[1735927703014,0.7695,3580.5,3580.4,0.2795]
[1735927703513,0.27951,3580.4,3580.3,0.2795]
[1735927703712,0.49,3580.5,3580.2,3.2078]
[1735927704015,0.27951,3580.3,3580.2,3.48731]
[1735927704615,0.27951,3580.4,3580.3,0.2795]
[1735927705209,0.7695,3580.5,3580.3,0.27951]
[1735927705412,0.2795,3580.4,3580.3,0.27951]
[1735927705914,0.49,3580.5,3580.3,0.27951]
[1735927706113,0.49,3580.5,3580.2,3.2078]
[1735927706114,0.7695,3580.5,3580.4,0.2795]
[1735927706311,0.7695,3580.5,3580.3,0.2795]
[1735927706512,0.7695,3580.5,3580.4,0.2795]
[1735927706813,0.49,3580.5,3580.4,0.2795]
[1735927707008,0.75319,3580.6,3580.5,0.2795]
[1735927707611,0.4737,3580.6,3580.5,0.2795]
[1735927707808,0.27948,3580.8,3580.7,0.27947]
[1735927708009,0.79197,3580.9,3580.8,0.27947]
[1735927708207,0.79196,3580.9,3580.8,0.27947]
[1735927711711,0.5125,3580.9,3580.6,3.2078]
[1735927711907,0.5125,3580.9,3580.2,3.2078]
[1735927711908,0.94470118,3580.9,3580.2,3.2078]
[1735927712115,0.27954,3579.9,3579.8,3.2078]
[1735927712311,0.69882,3580.1,3579.3,0.987]
[1735927712519,0.27957,3579.7,3579.6,0.27956]
[1735927713216,0.4766,3579.8,3579.3,0.987]
[1735927713519,0.75615,3579.8,3579.7,0.27956]
[1735927713720,0.27956,3579.7,3579.6,0.27956]
[1735927714116,0.4766,3579.8,3579.3,0.475]
[1735927714315,0.27959,3579.3,3579.2,3.2078]
[1735927715217,0.27959,3579.3,3579.2,3.4874]
[1735927715418,0.4766,3579.8,3579.2,5.34188956]
[1735927715623,0.4766,3579.8,3579.7,0.27956]
[1735927716024,0.27954,3580.0,3579.9,0.27954]
[1735927717419,0.75652,3580.2,3580.1,0.27953]
[1735927717721,0.27951,3580.4,3580.3,0.2795]
[1735927718513,0.27952,3580.3,3580.2,0.27951]
[1735927722719,3.2078,3580.3,3579.6,0.5069]
[1735927722923,0.27956,3579.7,3579.6,0.78646]
[1735927723123,0.5171,3580.2,3579.6,0.5069]
[1735927723325,0.27955,3579.9,3579.8,0.27955]
[1735927723523,41.07955,3579.9,3579.8,0.27955]
[1735927723925,0.27955,3579.9,3579.8,0.27955]
[1735927724425,0.27954,3580.0,3579.9,0.27953]
[1735927725124,41.07952,3580.2,3580.1,0.27953]
[1735927725330,41.23379011,3580.2,3580.1,0.27953]
[1735927725524,40.8,3580.2,3580.1,0.27953]
[1735927725826,0.43384028,3580.4,3580.1,2.13408956]
[1735927726026,0.43384028,3580.7,3580.3,3.2078]
[1735927726226,0.43424227,3580.7,3580.6,0.27949]
[1735927726422,0.27946,3580.9,3580.8,0.27947]
[1735927727222,0.27946,3581.0,3580.9,0.27946]
[1735927727623,40.8,3581.1,3580.7,3.2078]
[1735927728025,40.8,3581.1,3581.0,0.27946]
[1735927728623,0.78773,3581.4,3581.3,0.27943]
[1735927728829,0.5083,3581.4,3581.3,0.27943]
[1735927729030,0.78772,3581.4,3581.3,0.27943]
[1735927729222,0.78772,3581.4,3581.3,3.48723]
[1735927729424,0.78772,3581.4,3581.3,0.27943]
[1735927729826,0.27944,3581.2,3581.1,0.27944]
[1735927731128,0.27946,3581.0,3580.9,0.27946]
[1735927731328,0.27948,3580.8,3580.7,0.27947]
[1735927731530,2.83267956,3581.3,3580.6,3.2078]
[1735927731531,3.32057956,3581.3,3580.9,0.27946]
[1735927731735,0.27947,3580.9,3580.8,0.27947]
[1735927731936,0.5083,3581.4,3580.6,3.2078]
[1735927732434,0.27945,3581.1,3581.0,0.27945]
[1735927732733,0.27946,3581.0,3580.9,0.27946]
[1735927733036,41.07946,3581.0,3580.9,0.27946]
[1735927733633,40.8,3581.0,3580.9,0.27946]
[1735927733932,0.5083,3581.4,3580.6,3.2078]
[1735927734135,0.78773,3581.4,3581.2,0.27943]
[1735927734641,0.78773,3581.4,3581.3,0.27943]
[1735927735028,40.8,3581.4,3581.2,3.2078]
[1735927735230,40.8,3581.4,3581.3,0.75883]
[1735927736233,0.27941,3581.6,3581.3,0.4794]
[1735927736437,0.27942,3581.5,3581.4,0.27942]
[1735927736735,41.07942,3581.5,3581.4,0.27942]
[1735927738238,40.8,3581.5,3581.2,3.2078]
[1735927738537,0.27943,3581.4,3581.3,0.27943]
[1735927740131,40.8,3581.5,3581.2,3.2078]
[1735927740332,0.27941,3581.6,3581.5,0.27942]
[1735927740641,0.27943,3581.5,3581.4,0.27942]
[1735927742637,40.8,3581.7,3581.6,0.27941]
[1735927742945,2.68337333,3581.8,3581.7,0.2794]
[1735927743239,0.78709,3581.8,3581.7,0.2794]
[1735927743437,0.5077,3581.8,3581.2,3.2078]
[1735927743740,0.27943,3581.5,3581.4,0.27942]
[1735927744533,0.27943,3581.4,3581.3,0.27943]
[1735927745233,0.69851,3581.7,3581.2,3.2078]
[1735927745429,0.27943,3581.3,3581.2,3.48723]
[1735927745834,0.27943,3581.4,3581.3,0.27943]
[1735927746241,2.69317005,3581.8,3581.2,3.2078]
[1735927746540,0.27941,3581.6,3581.5,0.27941]
[1735927747548,0.27943,3581.4,3581.3,0.27943]
[1735927748637,0.27943,3581.3,3581.2,3.48724]
[1735927749139,1.2062,3581.8,3581.2,3.2078]
[1735927749342,0.27943,3581.4,3581.3,0.27943]
[1735927749644,0.27942,3581.5,3581.3,0.27943]
[1735927749845,0.5077,3581.8,3581.2,3.2078]
[1735927750141,0.27943,3581.4,3581.3,0.27943]
[1735927750535,0.5077,3581.8,3581.2,3.2078]
[1735927750737,0.27943,3581.4,3581.3,0.27943]
[1735927751044,0.27942,3581.5,3581.4,0.27942]
[1735927753936,0.27943,3581.4,3581.3,0.27943]
[1735927754138,0.27943,3581.3,3581.2,3.48724]
[1735927754846,0.5053,3581.7,3581.4,0.27942]
[1735927755147,0.27942,3581.5,3581.4,0.27942]
[1735927756242,0.5077,3581.8,3581.2,3.2078]
[1735927756449,0.27941,3581.7,3581.6,3.48721]
[1735927758635,0.5077,3581.8,3581.2,3.2078]
[1735927758842,0.27942,3581.6,3581.5,0.27941]
[1735927759042,0.27943,3581.4,3581.3,0.27942]
[1735927762842,0.27942,3581.5,3581.4,0.27942]
[1735927763943,0.27941,3581.6,3581.5,0.27941]
[1735927764138,2.18547005,3581.7,3581.2,3.2078]
[1735927764450,2.46487005,3581.7,3581.6,0.27941]
[1735927764644,2.18547005,3581.7,3581.6,3.48721]
[1735927764842,1.6214696,3581.7,3581.6,3.48721]
[1735927765044,0.9087696,3581.7,3581.6,8.48721]
[1735927765449,0.9087696,3581.7,3581.6,3.48721]
[1735927765654,3.28703894,3582.3,3581.7,0.69851]
[1735927765945,0.27936,3582.2,3582.1,3.2078]
[1735927766151,0.27936,3582.2,3582.1,3.48717]
[1735927766949,0.27936,3582.2,3581.7,3.6478]
[1735927766950,0.27939,3581.8,3581.7,3.6478]
[1735927767152,0.27939,3581.8,3581.7,3.2078]
[1735927767646,0.2794,3581.7,3581.6,6.55314658]
[1735927768253,0.27943,3581.4,3581.2,1.40243]
[1735927768545,0.4559,3581.3,3581.1,3.2078]
[1735927768754,1.18924,3581.3,3581.1,3.48724]
[1735927769253,0.27944,3581.2,3581.1,3.2078]
[1735927770348,0.27944,3581.2,3581.1,3.48725]
[1735927771243,1.18924,3581.3,3581.1,3.48725]
[1735927771651,0.9098,3581.3,3581.1,3.48725]
[1735927771851,1.18924,3581.3,3581.1,3.48725]
[1735927773350,0.27944,3581.2,3581.1,3.48725]
[1735927773548,0.27944,3581.2,3581.1,3.2078]
[1735927773750,0.9098,3581.3,3581.1,3.2078]
[1735927773952,0.27944,3581.2,3581.1,3.48724]
[1735927774157,1.18924,3581.3,3581.2,0.27944]
[1735927774450,1.18924,3581.3,3581.1,8.51791081]
[1735927775249,1.18924,3581.3,3581.2,0.27944]
[1735927775649,1.18924,3581.3,3581.1,8.23847081]
[1735927775849,1.18924,3581.3,3581.2,0.27944]
[1735927776050,0.9098,3581.3,3581.1,3.2078]
[1735927776250,1.18924,3581.3,3581.1,3.48725]
[1735927776755,0.9098,3581.3,3581.1,3.48725]
[1735927776955,0.9098,3581.3,3581.0,6.55314658]
[1735927776956,3.04388956,3581.3,3581.0,6.55314658]
[1735927777254,0.27945,3581.1,3581.0,6.55314658]
[1735927778854,7.4310607,3581.3,3580.8,0.27947]
[1735927779051,0.27946,3580.9,3580.8,0.27947]
[1735927779252,7.4310607,3581.3,3580.8,0.27947]
[1735927779447,7.4310607,3581.3,3580.5,6.55314658]
[1735927779647,2.13408956,3580.7,3580.5,6.55314658]
[1735927779853,1.21109,3580.6,3580.5,6.55314658]
[1735927780156,1.65129,3580.6,3580.5,6.55314658]
[1735927781858,0.27951,3580.4,3580.2,0.27951]
[1735927782148,0.27951,3580.3,3580.2,0.27952]
[1735927782956,0.27952,3580.2,3579.9,7.67614658]
[1735927783148,0.27952,3580.3,3580.2,0.27952]
[1735927783349,4.49636867,3580.6,3580.5,0.2795]
[1735927783756,0.2795,3580.5,3580.4,0.2795]
[1735927785254,0.9316,3580.6,3580.2,3.2078]
[1735927785551,0.9316,3580.6,3580.5,0.2795]
[1735927785757,0.9316,3580.6,3580.5,0.5029]
[1735927786255,3.28527867,3580.8,3580.5,0.2234]
[1735927786457,3.28527867,3580.8,3580.7,0.27948]
[1735927787147,0.477,3581.0,3580.6,3.656]
[1735927787457,0.477,3581.0,3580.9,0.27946]
[1735927787660,0.75646,3581.0,3580.9,0.27946]
[1735927787859,0.477,3581.0,3580.9,0.27946]
[1735927789455,0.477,3581.0,3580.6,3.656]
[1735927789665,0.27947,3580.9,3580.8,0.27947]
[1735927790356,0.75646,3581.0,3580.9,0.27946]
[1735927802367,0.75646,3581.0,3580.6,3.2078]
[1735927802368,2.61108956,3581.0,3580.6,3.2078]
[1735927802573,0.27948,3580.7,3580.6,3.2078]
[1735927802763,0.27949,3580.6,3580.5,0.50289]
[1735927803071,0.74059,3580.6,3580.5,0.2234]
[1735927803366,0.74059,3580.6,3580.5,0.5029]
[1735927804574,0.74059,3580.6,3580.5,0.2234]
[1735927805669,0.4611,3580.6,3580.0,6.55314658]
[1735927805863,0.27953,3580.1,3580.0,6.83267658]
[1735927806069,2.83285956,3580.4,3579.9,0.27954]
[1735927806070,0.27954,3580.0,3579.9,0.27954]
[1735927807175,0.27954,3579.9,3579.8,3.2078]
[1735927807475,1.16694,3579.9,3579.8,3.2078]
[1735927807674,0.27955,3579.8,3579.7,4.3855989]
[1735927808270,0.8874,3579.9,3579.4,4.6651789]
[1735927808468,0.27957,3579.5,3579.4,4.6651789]
[1735927809369,0.27957,3579.6,3579.5,0.27957]
[1735927809869,0.27956,3579.7,3579.6,0.27956]
[1735927810080,0.27953,3580.1,3580.0,0.27953]
[1735927810371,3.56479867,3580.2,3580.1,0.27953]
[1735927810870,0.27952,3580.2,3580.1,0.27953]
[1735927811475,1.19282,3580.3,3580.2,0.27952]
[1735927812077,0.2795,3580.5,3580.4,0.2795]
[1735927812274,0.2795,3580.5,3580.4,3.4873]
[1735927814569,0.74329,3580.6,3580.5,0.2795]
[1735927814768,3.56474867,3580.9,3580.8,0.27947]
[1735927816176,0.27947,3580.9,3580.8,0.27947]
[1735927818970,1.19416,3581.0,3580.9,0.27946]
[1735927819278,0.9147,3581.0,3580.9,0.27946]
[1735927819479,3.28527867,3581.2,3581.1,0.27945]
[1735927820272,2.55947867,3581.4,3581.3,0.27943]
[1735927820481,2.55947867,3581.4,3581.3,6.74431956]
[1735927821577,0.474,3582.2,3581.3,6.74431956]
[1735927821782,0.474,3582.2,3582.1,0.27937]
[1735927822177,0.4781,3582.3,3582.0,3.2078]
[1735927822475,0.4781,3582.3,3582.2,0.27936]
[1735927824981,0.4781,3582.3,3582.0,3.2078]
[1735927825182,0.4781,3582.3,3582.1,0.27937]
[1735927825483,0.75746,3582.3,3582.0,3.2078]
[1735927826086,0.75746,3582.3,3582.1,0.27937]
[1735927826280,0.4781,3582.3,3582.1,0.27937]
[1735927826477,0.4781,3582.3,3582.2,0.27936]
[1735927826879,0.73583,3582.7,3582.5,0.27934]
[1735927827079,0.4565,3582.7,3582.1,1.123]
[1735927827274,0.27933,3582.6,3582.4,0.27934]
[1735927827586,0.73583,3582.7,3582.5,0.27934]
[1735927827781,0.27934,3582.6,3582.1,1.123]
[1735927827982,0.4565,3582.7,3582.1,1.123]
[1735927828179,0.4565,3582.7,3582.3,0.27935]
[1735927828180,0.27935,3582.4,3582.3,0.27935]
[1735927829278,0.27934,3582.5,3582.1,1.123]
[1735927829584,0.27934,3582.5,3582.4,0.27934]
[1735927832086,0.73583,3582.7,3582.6,0.27933]
[1735927836490,0.4565,3582.7,3582.6,3.48713]
[1735927836894,0.73582,3582.7,3582.6,3.48713]
[1735927841194,3.6643,3582.7,3582.1,1.123]
[1735927841400,0.27936,3582.3,3582.2,0.27935]
[1735927841700,0.27935,3582.5,3582.4,0.27933]
[1735927842293,0.27934,3582.6,3582.5,0.27933]
[1735927843602,3.6643,3582.7,3582.1,1.82142]
[1735927843902,0.27936,3582.4,3582.3,0.27934]
[1735927845407,0.27935,3582.5,3582.4,0.27934]
[1735927847012,0.4628,3582.6,3582.1,1.123]
[1735927847217,0.27936,3582.4,3582.3,0.27934]
[1735927848905,0.27936,3582.4,3582.2,0.4707]
[1735927848906,0.4628,3582.6,3582.2,0.4707]
[1735927849216,0.74214,3582.6,3582.5,0.27934]
[1735927850314,0.27935,3582.5,3582.4,0.27934]
[1735927851115,0.27935,3582.5,3582.3,3.2078]
[1735927851116,0.74213,3582.6,3582.5,0.27934]
[1735927857322,0.27935,3582.5,3582.4,0.27934]
[1735927858323,0.27935,3582.4,3582.3,3.2078]
[1735927859022,0.27935,3582.4,3582.3,3.48715]
[1735927860822,0.27935,3582.4,3582.3,0.27935]
[1735927861528,0.4628,3582.6,3582.0,3.2078]
[1735927861721,0.74214,3582.6,3582.5,0.27934]
[1735927862118,0.4628,3582.6,3582.5,0.27934]
[1735927862532,0.4628,3582.6,3582.5,0.76004]
[1735927865424,0.74213,3582.6,3582.5,0.76004]
[1735927866629,0.74213,3582.6,3582.5,12.37153389]
[1735927866830,0.4628,3582.6,3582.5,12.37153389]
[1735927867630,0.74213,3582.6,3582.5,12.37153389]
[1735927869926,0.4628,3582.6,3582.5,12.37153389]
[1735927870234,4.38717114,3582.9,3582.8,0.27932]
[1735927870426,3.78424605,3582.9,3582.8,5.62120956]
[1735927871919,3.78424605,3582.9,3582.8,3.48712]
[1735927872126,0.27925,3583.6,3583.5,0.27926]
[1735927872325,0.27925,3583.7,3583.6,0.27925]
[1735927872830,0.27926,3583.6,3583.5,0.27926]
[1735927873026,0.919,3583.8,3583.2,5.6878]
[1735927873330,0.27926,3583.6,3583.5,0.27926]
[1735927874734,0.69812,3583.7,3583.5,4.38741629]
[1735927874927,0.27925,3583.6,3583.5,4.38741629]
[1735927875927,0.69812,3583.7,3583.3,0.27927]
[1735927875928,0.27927,3583.4,3583.3,0.27927]
[1735927877124,0.27927,3583.4,3583.3,0.27928]
[1735927877533,0.27928,3583.3,3583.2,7.87449629]
[1735927877732,0.4794,3583.3,3583.2,7.87449629]
[1735927878331,0.4626,3583.8,3583.2,7.59521629]
[1735927878532,0.4794,3583.7,3583.2,7.59521629]
[1735927878731,0.75865,3583.7,3583.6,0.27925]
[1735927878934,0.4794,3583.7,3583.6,3.48705]
[1735927881124,0.9029,3584.1,3583.6,3.2078]
[1735927881330,0.4782,3584.4,3584.3,0.2792]
[1735927881531,0.4782,3584.4,3584.3,2.41328956]
[1735927882729,0.4436,3584.8,3584.3,3.25608956]
[1735927882935,0.27915,3584.9,3584.7,5.34188956]
[1735927883132,0.4782,3585.0,3584.7,5.34188956]
[1735927883341,0.4782,3585.0,3584.7,3.48696]
[1735927883834,0.27915,3584.9,3584.7,3.2078]
[1735927884138,0.75735,3585.0,3584.8,0.27915]
[1735927884329,0.4782,3585.0,3584.7,5.34188956]
[1735927884531,0.75735,3585.0,3584.9,0.27915]
[1735927885324,0.4782,3585.0,3584.7,5.34188956]
[1735927885532,0.4782,3585.0,3584.4,2.13408956]
[1735927885730,0.27918,3584.5,3584.4,0.27918]
[1735927886236,0.27919,3584.5,3584.4,0.27919]
[1735927886830,0.27918,3584.6,3584.4,0.27919]
[1735927887035,0.74978,3584.5,3584.4,0.27919]
[1735927887236,4.1303,3584.5,3584.1,4.38741629]
[1735927887434,4.1303,3584.5,3583.8,2.13408956]
[1735927887435,0.27923,3583.9,3583.8,4.38741629]
[1735927888733,0.69801,3584.3,3583.4,0.4397]
[1735927888937,0.4706,3583.8,3583.7,0.27924]
[1735927889436,0.74984,3583.8,3583.7,0.27924]
[1735927889641,0.4706,3583.8,3583.7,0.27924]
[1735927889938,0.4706,3583.8,3583.5,2.13408956]
[1735927890147,0.74984,3583.8,3583.6,0.27925]
[1735927890745,0.74984,3583.8,3583.7,0.27925]
[1735927891044,0.4706,3583.8,3583.7,0.27925]
[1735927892240,0.27922,3584.1,3584.0,0.27922]
[1735927892440,0.4482,3584.3,3583.8,2.13408956]
[1735927892645,0.7274,3584.3,3584.2,0.27921]
[1735927893145,0.4482,3584.3,3583.9,3.2078]
[1735927893343,0.27921,3584.2,3584.1,0.27921]
[1735927893534,0.4519,3584.5,3584.1,2.13408956]
[1735927893734,2.63379203,3584.8,3584.3,0.27919]
[1735927893941,0.2792,3584.3,3584.2,0.758]
[1735927895541,0.2792,3584.3,3584.2,0.4788]
[1735927895743,0.27921,3584.2,3584.1,2.41329956]
[1735927896540,0.27921,3584.2,3583.9,3.6716]
[1735927896541,0.27922,3584.0,3583.9,4.7926]
[1735927896748,0.27922,3584.0,3583.9,1.5848]
[1735927898248,0.27922,3584.0,3583.9,0.74303]
[1735927898450,0.27925,3583.7,3583.6,1.121]
[1735927898747,0.27925,3583.7,3583.6,1.40025]
[1735927899451,0.27922,3584.1,3584.0,0.27922]
[1735927900246,0.27922,3584.0,3583.9,3.2078]
[1735927900750,0.27923,3583.9,3583.8,0.27923]
[1735927900949,0.76243,3583.9,3583.8,0.27923]
[1735927901746,0.4832,3583.9,3583.6,0.9154]
[1735927901951,0.27925,3583.7,3583.6,1.19465]
[1735927902147,0.27925,3583.7,3583.6,0.9154]
[1735927902352,0.27926,3583.5,3583.4,3.2078]
[1735927902554,0.27926,3583.5,3583.4,4.3288]
[1735927902755,0.27926,3583.6,3583.5,0.27926]
[1735927903056,0.891,3583.8,3583.4,4.3288]
[1735927903260,0.27925,3583.7,3583.6,0.27925]
[1735927903752,0.27925,3583.7,3583.4,4.3288]
[1735927903753,0.4435,3583.8,3583.4,4.3288]
[1735927903953,0.27926,3583.5,3583.4,4.60807]
[1735927904756,0.27926,3583.6,3583.5,0.27926]
[1735927905757,0.27925,3583.7,3583.6,0.27925]
[1735927905957,0.27924,3583.8,3583.7,0.27925]
[1735927907356,0.4832,3583.9,3583.6,0.4614]
[1735927907554,0.27925,3583.7,3583.6,0.4614]
[1735927908261,0.27925,3583.7,3583.6,0.74065]
[1735927908957,0.27925,3583.7,3583.6,0.4614]
[1735927909261,0.27928,3583.3,3583.2,4.38741629]
[1735927910256,0.4466,3583.4,3583.1,0.74299]
[1735927910462,0.27928,3583.2,3583.1,0.74299]
[1735927910960,0.27928,3583.2,3583.1,0.4637]
[1735927911152,0.27928,3583.2,3583.1,0.74299]
[1735927911353,0.4466,3583.4,3583.0,3.2078]
[1735927911655,0.72587,3583.4,3583.3,0.27928]
[1735927912160,0.85187,3583.4,3583.3,0.27928]
[1735927912866,0.27928,3583.3,3583.2,0.27928]
[1735927913065,0.40528,3583.3,3583.2,0.27928]
[1735927914158,0.126,3583.3,3583.2,0.27928]
[1735927914360,0.40528,3583.3,3583.2,0.27928]
[1735927914765,0.126,3583.3,3583.2,0.27928]
[1735927915158,0.40528,3583.3,3583.2,0.27928]
[1735927915357,0.126,3583.3,3583.2,2.41336956]
[1735927915567,0.126,3583.3,3583.2,6.80078585]
[1735927916761,0.126,3583.3,3583.2,14.03392321]
[1735927918169,0.126,3583.3,3583.2,7.45032536]
[1735927919167,2.18559203,3584.0,3583.2,12.17104536]
[1735927919369,2.18559203,3584.0,3583.9,2.41331956]
[1735927919563,2.18559203,3584.0,3583.9,3.53431956]
[1735927919872,2.18559203,3584.1,3584.0,0.27922]
[1735927920377,2.46480203,3584.1,3584.0,0.76532]
[1735927920566,2.46480203,3584.1,3584.0,0.4861]
[1735927920873,0.27924,3583.8,3583.7,3.2078]
[1735927921368,0.27924,3583.8,3583.7,9.77422481]
[1735927921965,0.74074,3583.8,3583.7,9.77422481]
[1735927922672,0.74074,3583.8,3583.7,3.2078]
[1735927925472,0.4615,3583.8,3583.7,3.48705]
[1735927926175,2.18559203,3583.9,3583.8,0.27924]
[1735927926777,2.46482203,3583.9,3583.8,0.27924]
[1735927927375,0.27923,3583.9,3583.8,0.27924]
[1735927927981,0.27924,3583.8,3583.7,3.2078]
[1735927928188,0.27925,3583.7,3583.6,6.56642481]
[1735927928375,1.21435,3583.7,3583.6,6.56642481]
[1735927928890,0.27927,3583.4,3583.3,9.05740047]
[1735927929183,0.27927,3583.4,3583.3,8.77813047]
[1735927929477,0.9351,3583.7,3583.3,14.12002003]
[1735927929675,0.4564,3583.8,3583.7,0.27925]
[1735927929873,0.4564,3583.8,3583.7,3.48705]
[1735927930081,0.4564,3583.8,3583.7,0.27925]
[1735927930784,0.4564,3583.8,3583.7,3.48705]
[1735927930979,0.4564,3583.8,3583.7,3.94485]
[1735927931174,0.4564,3583.8,3583.7,4.41285]
[1735927931374,3.28370546,3583.9,3583.8,0.27924]
[1735927931777,2.6451475,3584.1,3584.0,0.27922]
[1735927932076,2.9243575,3584.1,3584.0,0.27922]
[1735927932986,0.27921,3584.1,3584.0,0.27922]
[1735927933176,2.9512575,3584.2,3584.0,0.27922]
[1735927933482,2.9512575,3584.2,3584.1,0.27921]
[1735927934378,0.75781,3584.2,3584.1,0.27921]
[1735927935589,0.4786,3584.2,3584.1,0.27921]
[1735927935787,0.75781,3584.2,3584.1,5.30389945]
[1735927936990,0.4786,3584.2,3584.1,5.30389945]
[1735927937186,2.1934475,3584.4,3584.1,5.02468945]
[1735927937484,2.1934475,3584.4,3584.3,0.2792]
[1735927937689,2.1934475,3584.4,3584.3,1.4002]
[1735927937885,2.1934475,3584.4,3584.3,2.3175]
[1735927938688,2.1934475,3584.9,3584.3,15.84111992]
[1735927938884,2.1934475,3584.9,3584.8,0.27916]
[1735927939089,2.1934475,3584.9,3584.3,15.84111992]
[1735927939281,0.27917,3584.7,3584.4,0.27919]
[1735927939487,0.4721,3584.6,3584.5,0.27918]
[1735927939893,0.4721,3584.6,3584.5,4.65655172]
[1735927940390,0.75128,3584.6,3584.5,4.37737172]
[1735927940991,41.55128,3584.6,3584.5,0.29107172]
[1735927941192,43.4655475,3584.6,3584.0,6.56605759]
[1735927941390,0.27921,3584.1,3584.0,6.56605759]
[1735927941790,3.48701,3584.1,3584.0,6.56605759]
[1735927942305,44.28701,3584.1,3584.0,6.56605759]
[1735927942989,0.27923,3583.9,3583.8,0.27923]
[1735927943192,44.0078,3584.1,3583.3,8.70014715]
[1735927943491,0.27925,3583.7,3583.6,0.27924]
[1735927943689,0.27924,3583.8,3583.7,0.27923]
[1735927944786,0.76124,3583.8,3583.7,0.27923]
[1735927944991,0.482,3583.8,3583.7,0.27923]
[1735927945895,0.76124,3583.8,3583.7,0.27923]
[1735927946494,2.95433591,3583.8,3583.7,0.27923]
[1735927947298,2.67509591,3583.8,3583.7,0.27923]
[1735927948394,2.19309591,3583.8,3583.7,0.27923]
[1735927948900,2.19309591,3583.8,3583.7,0.75003]
[1735927949295,2.47231591,3584.1,3584.0,0.27922]
[1735927950198,2.19309591,3584.1,3584.0,0.27922]
[1735927952503,1.45919591,3584.1,3584.0,0.27922]
[1735927952805,3.2898677,3584.3,3584.2,0.27921]
[1735927953006,3.2898677,3584.3,3584.2,5.62109956]
[1735927953205,3.2898677,3584.6,3584.5,0.27918]
[1735927954800,0.4677,3584.9,3584.4,6.56605759]
[1735927955099,0.27916,3584.8,3584.7,0.27916]
[1735927955696,0.74686,3584.9,3584.8,0.27916]
[1735927955893,0.4677,3584.9,3584.8,0.27916]
[1735927956296,0.74685,3584.9,3584.8,0.27916]
[1735927956499,3.2898677,3585.1,3584.6,3.2078]
[1735927956705,3.2898677,3585.1,3585.0,0.27914]
[1735927957496,3.95163,3585.3,3585.2,0.27913]
[1735927957693,3.6725,3585.3,3585.2,0.27913]
[1735927957894,0.4647,3585.3,3585.2,0.27913]
[1735927959004,3.6705,3586.3,3585.2,2.13408956]
[1735927959200,3.2078,3588.5,3586.5,0.69756]
[1735927959401,3.2078,3588.5,3587.1,5.34188956]
[1735927959599,0.6973,3588.0,3587.1,5.34188956]
[1735927959800,0.27895,3587.5,3587.3,0.27896]
[1735927960003,2.13408956,3588.1,3587.1,5.34188956]
[1735927960203,0.27894,3587.6,3587.5,3.2078]
[1735927960901,0.27896,3587.4,3587.3,0.27896]
[1735927961100,0.4516,3587.5,3587.0,3.2078]
[1735927961301,0.27898,3587.2,3587.0,3.48678]
[1735927961605,0.4516,3587.5,3587.0,3.48678]
[1735927961606,41.2912,3587.4,3587.0,3.48678]
[1735927961803,0.27897,3587.3,3587.0,3.48678]
[1735927962005,41.2912,3587.4,3587.0,3.48679]
[1735927962006,0.27898,3587.2,3587.0,3.48679]
[1735927962509,0.27898,3587.1,3587.0,3.2078]
[1735927962696,0.27901,3586.8,3586.6,3.2078]
[1735927962902,0.4403,3586.7,3586.6,3.2078]
[1735927963208,0.71931,3586.7,3586.6,3.2078]
[1735927963506,41.2403,3586.7,3586.4,6.55168773]
[1735927963705,0.27903,3586.5,3586.4,6.55168773]
[1735927964005,0.27904,3586.3,3586.2,3.2078]
[1735927964400,41.07904,3586.3,3586.2,3.2078]
[1735927964908,40.8,3586.3,3585.9,3.2078]
[1735927965109,41.07905,3586.3,3586.1,0.27905]
[1735927965808,40.8,3586.3,3585.9,3.2078]
[1735927966011,0.27906,3586.2,3586.1,0.27906]
[1735927966207,40.8,3586.3,3586.2,0.27905]
[1735927966612,40.8,3586.3,3586.2,2.41313956]